bitfinex-derivatives/quotes_BTCF0:USTF0_20250614
["timestamp","ask_amount","ask_price","bid_price","bid_amount"]
[1749891547827,2.42465215,105190.0,105180.0,0.39272237]
[1749891548127,2.42465215,105190.0,105180.0,0.39272236]
[1749891549027,2.42465215,105190.0,105180.0,0.37793167]
[1749891549223,2.42465215,105190.0,105180.0,0.21620374]
[1749891549424,2.42465215,105190.0,105180.0,0.39264374]
[1749891549626,2.42465215,105190.0,105180.0,0.39264606]
[1749891549821,2.42465215,105190.0,105180.0,0.39264612]
[1749891550026,2.42465215,105190.0,105180.0,0.39264614]
[1749891550422,2.42465215,105190.0,105180.0,0.38241579]
[1749891550625,2.42465215,105190.0,105180.0,0.21620613]
[1749891550826,2.42465215,105190.0,105180.0,0.39264613]
[1749891551332,2.42465215,105190.0,105180.0,0.38241579]
[1749891551531,2.42465215,105190.0,105180.0,0.39264629]
[1749891551728,2.42465215,105190.0,105180.0,0.38241579]
[1749891551928,2.42465215,105190.0,105180.0,0.39264629]
[1749891552131,2.42465215,105190.0,105180.0,0.37785186]
[1749891552323,2.42465215,105190.0,105180.0,0.38241579]
[1749891552631,2.42465215,105190.0,105180.0,0.39264629]
[1749891552827,2.42465215,105190.0,105180.0,0.38241579]
[1749891553431,2.42465215,105190.0,105180.0,0.36762136]
[1749891553932,2.42465215,105190.0,105180.0,0.38241579]
[1749891554534,2.42465215,105190.0,105180.0,0.38241463]
[1749891554734,2.42465215,105190.0,105180.0,0.38241465]
[1749891555134,2.42465215,105190.0,105180.0,0.36762136]
[1749891555435,2.42465215,105190.0,105180.0,0.38241465]
[1749891555825,2.42465215,105190.0,105180.0,0.38241464]
[1749891556435,2.42465215,105190.0,105180.0,0.38241465]
[1749891556636,2.42465215,105190.0,105180.0,0.38241474]
[1749891556933,2.42465215,105190.0,105180.0,0.38241481]
[1749891557537,2.42465215,105190.0,105180.0,0.36762136]
[1749891557731,2.42465215,105190.0,105180.0,0.38241481]
[1749891558034,2.42465215,105190.0,105180.0,0.38241476]
[1749891558236,2.42465215,105190.0,105180.0,0.38241477]
[1749891558433,2.42465215,105190.0,105180.0,0.38241483]
[1749891558936,2.42465215,105190.0,105180.0,0.3824149]
[1749891559137,2.42465215,105190.0,105180.0,0.38241481]
[1749891559834,2.42465215,105190.0,105180.0,0.38241713]
[1749891560638,2.42465215,105190.0,105180.0,0.36762136]
[1749891560839,2.42465215,105190.0,105180.0,0.38241713]
[1749891561134,2.42465215,105190.0,105180.0,0.36762136]
[1749891561340,2.42465215,105190.0,105180.0,0.38241713]
[1749891561736,2.42465215,105190.0,105180.0,0.36762136]
[1749891562239,2.42465215,105190.0,105180.0,0.38241738]
[1749891562540,2.45425143,105190.0,105180.0,0.32308373]
[1749891562931,2.45425143,105190.0,105180.0,0.34811086]
[1749891563132,2.45425143,105190.0,105180.0,0.34811087]
[1749891563637,2.45425143,105190.0,105180.0,0.34811083]
[1749891563836,2.45425143,105190.0,105180.0,0.34811103]
[1749891564041,2.45425143,105190.0,105180.0,0.33788028]
[1749891564237,2.45425143,105190.0,105180.0,0.34811151]
[1749891564539,2.45425143,105190.0,105180.0,0.32308373]
[1749891564741,2.45425143,105190.0,105180.0,0.34810926]
[1749891564938,2.45425143,105190.0,105180.0,0.32308373]
[1749891565143,2.45425143,105190.0,105180.0,0.52337878]
[1749891565341,2.45425143,105190.0,105180.0,0.52337868]
[1749891565537,2.45425143,105190.0,105180.0,0.53817269]
[1749891565739,2.45425143,105190.0,105180.0,0.52337863]
[1749891566039,2.45425143,105190.0,105180.0,0.53817258]
[1749891566338,2.45425143,105190.0,105180.0,0.51314753]
[1749891566645,2.45425143,105190.0,105180.0,0.52337847]
[1749891566834,2.45425143,105190.0,105180.0,0.52794147]
[1749891567037,2.45425143,105190.0,105180.0,0.53817241]
[1749891567545,2.45425143,105190.0,105180.0,0.34810622]
[1749891568138,2.45425143,105190.0,105180.0,0.32308373]
[1749891568339,2.45425143,105190.0,105180.0,0.2014625]
[1749891568643,2.45425143,105190.0,105180.0,0.33331228]
[1749891568948,2.45425143,105190.0,105180.0,0.34810054]
[1749891569148,2.45425143,105190.0,105180.0,0.33331228]
[1749891569339,2.45425143,105190.0,105180.0,0.34810054]
[1749891570145,2.45425143,105190.0,105180.0,0.34809938]
[1749891570639,2.45425143,105190.0,105180.0,0.33331228]
[1749891570946,2.45425143,105190.0,105180.0,0.33787083]
[1749891571246,2.45425143,105190.0,105180.0,0.34809938]
[1749891571550,2.45425143,105190.0,105180.0,0.33331228]
[1749891571753,2.45425143,105190.0,105180.0,0.34809938]
[1749891571946,2.45425143,105190.0,105180.0,0.34809922]
[1749891572248,2.45425143,105190.0,105180.0,0.33331212]
[1749891572443,2.5731243,105190.0,105180.0,0.38240163]
[1749891572751,2.4246623,105190.0,105180.0,0.36761453]
[1749891572952,2.4246623,105190.0,105180.0,0.39263002]
[1749891573145,2.4246623,105190.0,105180.0,0.37784291]
[1749891573346,2.42880065,105190.0,105180.0,0.39263]
[1749891573553,2.42880065,105190.0,105180.0,0.37784292]
[1749891573743,2.42880065,105190.0,105180.0,0.39263002]
[1749891573943,2.42880065,105190.0,105180.0,0.38240163]
[1749891574243,2.30578943,105190.0,105180.0,0.0593179]
[1749891574442,0.9246623,105190.0,105180.0,0.05475919]
[1749891574749,0.9246623,105190.0,105180.0,0.01022954]
[1749891575049,0.1900638,105180.0,105170.0,0.32318628]
[1749891575250,0.79310753,105180.0,105170.0,0.39273497]
[1749891575445,2.29310753,105180.0,105170.0,0.21633516]
[1749891575653,2.29310753,105180.0,105170.0,0.38250642]
[1749891575951,2.4119804,105180.0,105170.0,0.37794667]
[1749891576144,2.4119804,105180.0,105170.0,0.39273735]
[1749891576349,2.4119804,105180.0,105170.0,0.37794676]
[1749891576550,2.4119804,105180.0,105170.0,0.23686284]
[1749891576851,2.4119804,105180.0,105170.0,0.39374681]
[1749891577049,2.29310753,105180.0,105170.0,0.38350657]
[1749891577250,2.29310753,105180.0,105170.0,0.39374681]
[1749891577754,2.29310753,105180.0,105170.0,0.38350684]
[1749891577956,2.29310753,105180.0,105170.0,0.39374727]
[1749891578145,2.29310753,105180.0,105170.0,0.38350684]
[1749891578451,2.4119804,105180.0,105170.0,0.39374732]
[1749891578753,2.29310753,105180.0,105170.0,0.39374732]
[1749891578948,2.29310753,105180.0,105170.0,0.39372634]
[1749891579143,2.4119804,105180.0,105170.0,0.39372634]
[1749891579551,2.4119804,105180.0,105170.0,0.37893545]
[1749891579751,2.29310753,105180.0,105170.0,0.39369604]
[1749891579952,2.29310753,105180.0,105170.0,0.37893545]
[1749891580254,2.3989804,105180.0,105170.0,0.39369585]
[1749891580446,2.3989804,105180.0,105170.0,0.37893535]
[1749891580658,2.28010753,105180.0,105170.0,0.39369579]
[1749891580848,2.1334638,105180.0,105170.0,0.36871598]
[1749891581049,2.28010753,105180.0,105170.0,0.39369577]
[1749891581351,2.28010753,105180.0,105170.0,0.37893534]
[1749891581552,2.28010753,105180.0,105170.0,0.39379063]
[1749891581747,2.28010753,105180.0,105170.0,0.36871598]
[1749891581953,2.28010753,105180.0,105170.0,0.3937952]
[1749891582154,2.28010753,105180.0,105170.0,0.38357127]
[1749891582657,2.28010753,105180.0,105170.0,0.38357113]
[1749891583154,2.28010753,105180.0,105170.0,0.39379493]
[1749891583355,2.28010753,105180.0,105170.0,0.39379488]
[1749891583555,2.28010753,105180.0,105170.0,0.39379479]
[1749891583758,2.28010753,105180.0,105170.0,0.39379471]
[1749891583954,2.28010753,105180.0,105170.0,0.39379463]
[1749891584154,2.28010753,105180.0,105170.0,0.38357099]
[1749891584351,2.28010753,105180.0,105170.0,0.37893938]
[1749891584551,2.28010753,105180.0,105170.0,0.3835705]
[1749891584856,2.28010753,105180.0,105170.0,0.39379386]
[1749891585253,2.28010753,105180.0,105170.0,0.37893937]
[1749891585454,2.28010753,105180.0,105170.0,0.36871598]
[1749891585753,2.28010753,105180.0,105170.0,0.39379991]
[1749891586451,2.28010753,105180.0,105170.0,0.37893936]
[1749891586650,2.28010753,105180.0,105170.0,0.39379991]
[1749891586846,2.28010753,105180.0,105170.0,0.33440966]
[1749891587156,2.28010753,105180.0,105170.0,0.20262648]
[1749891587358,2.28010753,105180.0,105170.0,0.34927021]
[1749891587550,2.1334638,105180.0,105170.0,0.34927021]
[1749891587750,2.28010753,105180.0,105170.0,0.33904683]
[1749891587946,2.28010753,105180.0,105170.0,0.33440926]
[1749891588251,2.28010753,105180.0,105170.0,0.37880347]
[1749891588457,2.28010753,105180.0,105170.0,0.39366402]
[1749891588755,2.28010753,105180.0,105170.0,0.32418628]
[1749891588953,2.28010753,105180.0,105170.0,0.38087164]
[1749891589262,2.28010753,105180.0,105170.0,0.35578628]
[1749891589552,2.1334638,105180.0,105170.0,0.38087163]
[1749891589955,2.25233667,105180.0,105170.0,0.38087163]
[1749891590355,2.25233667,105180.0,105170.0,0.36601108]
[1749891590553,2.25233667,105180.0,105170.0,0.38087163]
[1749891590757,2.25233667,105180.0,105170.0,0.36601108]
[1749891590961,2.3989804,105180.0,105170.0,0.38087163]
[1749891591155,2.3989804,105180.0,105170.0,0.36601108]
[1749891591456,2.3989804,105180.0,105170.0,0.38087163]
[1749891591457,2.25233667,105180.0,105170.0,0.38087163]
[1749891591754,2.25233667,105180.0,105170.0,0.38087164]
[1749891592152,2.1334638,105180.0,105170.0,0.42526082]
[1749891592548,2.1334638,105180.0,105170.0,0.41040007]
[1749891592754,2.1334638,105180.0,105170.0,0.40017546]
[1749891592955,2.1334638,105180.0,105170.0,0.41503601]
[1749891594056,2.28010753,105180.0,105170.0,0.41503601]
[1749891594360,2.28010753,105180.0,105170.0,0.42528161]
[1749891595050,2.28010753,105180.0,105170.0,0.41042106]
[1749891595256,2.28010753,105180.0,105170.0,0.42528154]
[1749891595559,2.28010753,105180.0,105170.0,0.61536344]
[1749891595759,2.28010753,105180.0,105170.0,0.60050289]
[1749891596161,2.28010753,105180.0,105170.0,0.61536344]
[1749891596362,2.28010753,105180.0,105170.0,0.60511791]
[1749891596658,2.28010753,105180.0,105170.0,0.61536344]
[1749891597257,2.28010753,105180.0,105170.0,0.61536345]
[1749891597460,2.28010753,105180.0,105170.0,0.61536371]
[1749891597662,2.28010753,105180.0,105170.0,0.60511791]
[1749891597860,2.28010753,105180.0,105170.0,0.61536334]
[1749891598055,2.28010753,105180.0,105170.0,0.60050279]
[1749891598262,2.28010753,105180.0,105170.0,0.60511791]
[1749891598458,2.28010753,105180.0,105170.0,0.61536335]
[1749891598662,2.26010753,105180.0,105170.0,0.41503601]
[1749891599166,2.26010753,105180.0,105170.0,0.42528145]
[1749891599469,2.26010753,105180.0,105170.0,0.59025736]
[1749891599658,2.26010753,105180.0,105170.0,0.60511791]
[1749891599659,2.0812638,105180.0,105170.0,0.60511791]
[1749891599965,2.0812638,105180.0,105170.0,0.60050254]
[1749891600266,2.0812638,105180.0,105170.0,0.60050237]
[1749891600461,0.5178638,105180.0,105170.0,0.61536253]
[1749891600672,0.5508637,105180.0,105170.0,0.68096202]
[1749891600971,0.5508637,105180.0,105170.0,0.68096141]
[1749891601159,0.5508637,105180.0,105170.0,0.65585736]
[1749891601466,0.5508637,105180.0,105170.0,0.68096127]
[1749891601765,0.5508637,105180.0,105170.0,0.66610162]
[1749891601965,0.5508637,105180.0,105170.0,0.68096127]
[1749891602265,0.5508637,105180.0,105170.0,0.65585736]
[1749891602467,0.5508637,105180.0,105170.0,0.66610161]
[1749891602664,0.5508637,105180.0,105170.0,0.65585736]
[1749891602967,0.5508637,105180.0,105170.0,0.68096161]
[1749891603169,0.5508637,105180.0,105170.0,0.65585736]
[1749891603368,0.5508637,105180.0,105170.0,0.67071707]
[1749891603667,0.5508637,105180.0,105170.0,0.56847596]
[1749891603861,0.5508637,105180.0,105170.0,0.7105046]
[1749891604066,0.5508637,105180.0,105170.0,0.68096173]
[1749891604364,0.5508637,105180.0,105170.0,0.6707171]
[1749891604562,0.5508637,105180.0,105170.0,0.68096173]
[1749891604766,0.5508637,105180.0,105170.0,0.6707171]
[1749891604968,0.5508637,105180.0,105170.0,0.68096174]
[1749891605167,0.5508637,105180.0,105170.0,0.65585736]
[1749891605367,0.5508637,105180.0,105170.0,0.666102]
[1749891605672,0.5508637,105180.0,105170.0,0.68095969]
[1749891605871,0.5508637,105180.0,105170.0,0.66609995]
[1749891606070,0.5508637,105180.0,105170.0,0.68095974]
[1749891606266,0.5508637,105180.0,105170.0,0.66610001]
[1749891606570,0.69750743,105180.0,105170.0,0.68095976]
[1749891606765,0.5508637,105180.0,105170.0,0.66609999]
[1749891606971,0.5508637,105180.0,105170.0,0.68095975]
[1749891607170,0.5508637,105180.0,105170.0,0.6707171]
[1749891607463,0.5508637,105180.0,105170.0,0.68095976]
[1749891607774,0.5508637,105180.0,105170.0,0.66610002]
[1749891608268,0.5508637,105180.0,105170.0,0.68095976]
[1749891608669,0.5508637,105180.0,105170.0,0.66610002]
[1749891608871,0.6119637,105180.0,105170.0,0.6707171]
[1749891609065,0.6119637,105180.0,105170.0,0.34305636]
[1749891609271,0.6119637,105180.0,105170.0,1.41507615]
[1749891609470,0.6119637,105180.0,105170.0,1.40483342]
[1749891609671,0.6119637,105180.0,105170.0,1.40024027]
[1749891609869,0.6119637,105180.0,105170.0,1.41507684]
[1749891610067,0.6119637,105180.0,105170.0,1.38999726]
[1749891610272,0.6119637,105180.0,105170.0,1.40483383]
[1749891610469,0.6119637,105180.0,105170.0,1.41507684]
[1749891610768,0.6119637,105180.0,105170.0,1.40483383]
[1749891610967,0.6119637,105180.0,105170.0,1.41507684]
[1749891611168,0.6119637,105180.0,105170.0,1.41507685]
[1749891611367,0.6119637,105180.0,105170.0,1.38999726]
[1749891611874,0.6119637,105180.0,105170.0,1.40024018]
[1749891612074,0.6119637,105180.0,105170.0,1.38999726]
[1749891612575,0.73083657,105180.0,105170.0,1.37068744]
[1749891612874,0.73083657,105180.0,105170.0,1.36044452]
[1749891613075,0.8774803,105180.0,105170.0,1.37068744]
[1749891613270,0.8774803,105180.0,105170.0,1.36044452]
[1749891613467,0.8774803,105180.0,105170.0,1.37068744]
[1749891613667,0.8774803,105180.0,105170.0,1.22404371]
[1749891613870,0.8774803,105180.0,105170.0,1.37068744]
[1749891614267,0.8774803,105180.0,105170.0,1.37067868]
[1749891614467,0.8774803,105180.0,105170.0,1.41514533]
[1749891614767,0.8774803,105180.0,105170.0,1.41513928]
[1749891614967,0.8774803,105180.0,105170.0,1.41511576]
[1749891615770,0.8774803,105180.0,105170.0,1.40030261]
[1749891616076,0.8774803,105180.0,105170.0,1.40488876]
[1749891616277,0.8774803,105180.0,105170.0,1.40488862]
[1749891616467,0.8774803,105180.0,105170.0,1.41511509]
[1749891616774,0.8774803,105180.0,105170.0,1.40030108]
[1749891616979,0.8774803,105180.0,105170.0,1.40488861]
[1749891617176,0.8774803,105180.0,105170.0,1.41511496]
[1749891618778,0.8774803,105180.0,105170.0,1.40488861]
[1749891618980,0.8774803,105180.0,105170.0,1.41511484]
[1749891619278,0.8774803,105180.0,105170.0,1.400301]
[1749891619475,0.8774803,105180.0,105170.0,1.39007473]
[1749891619681,0.8774803,105180.0,105170.0,1.41511472]
[1749891619869,0.73083657,105180.0,105170.0,1.40488847]
[1749891620273,0.73083657,105180.0,105170.0,1.40029688]
[1749891620473,0.73083657,105180.0,105170.0,1.41511049]
[1749891620782,0.73083657,105180.0,105170.0,1.37064384]
[1749891620974,0.73083657,105180.0,105170.0,1.37064387]
[1749891621479,0.73083657,105180.0,105170.0,1.37770808]
[1749891621675,0.73083657,105180.0,105170.0,1.40274428]
[1749891621875,0.73083657,105180.0,105170.0,1.39252181]
[1749891622076,0.73083657,105180.0,105170.0,1.40274415]
[1749891622473,0.6119637,105180.0,105170.0,1.4369832]
[1749891622777,0.6119637,105180.0,105170.0,1.44720558]
[1749891622977,0.6119637,105180.0,105170.0,1.44720557]
[1749891623179,0.6119637,105180.0,105170.0,1.44720606]
[1749891623379,0.6119637,105180.0,105170.0,1.44720641]
[1749891623574,0.6119637,105180.0,105170.0,1.44720665]
[1749891623776,0.6119637,105180.0,105170.0,1.44720666]
[1749891623974,0.6119637,105180.0,105170.0,1.44720805]
[1749891624175,0.6119637,105180.0,105170.0,1.44721016]
[1749891624377,0.6119637,105180.0,105170.0,1.44719466]
[1749891624576,0.6119637,105180.0,105170.0,1.43696987]
[1749891624977,0.6119637,105180.0,105170.0,1.44719512]
[1749891625382,0.6119637,105180.0,105170.0,1.44720295]
[1749891625589,0.6119637,105180.0,105170.0,1.44720229]
[1749891625983,0.6119637,105180.0,105170.0,1.44720274]
[1749891626180,0.6119637,105180.0,105170.0,1.43240094]
[1749891626378,0.6119637,105180.0,105170.0,1.44720343]
[1749891626977,0.6119637,105180.0,105170.0,1.43697196]
[1749891627181,0.6119637,105180.0,105170.0,0.50396231]
[1749891627384,0.6119637,105180.0,105170.0,1.44724232]
[1749891627583,0.6119637,105180.0,105170.0,1.43243983]
[1749891627780,0.6119637,105180.0,105170.0,1.43243832]
[1749891628085,0.6119637,105180.0,105170.0,1.43243831]
[1749891628272,0.6119637,105180.0,105170.0,1.44723737]
[1749891628478,0.6119637,105180.0,105170.0,1.43243783]
[1749891628684,0.6119637,105180.0,105170.0,1.43700901]
[1749891629075,0.6119637,105180.0,105170.0,1.43243783]
[1749891629282,0.6119637,105180.0,105170.0,1.44724492]
[1749891629483,0.6119637,105180.0,105170.0,1.44724497]
[1749891629680,0.6119637,105180.0,105170.0,1.43243812]
[1749891629879,0.6119637,105180.0,105170.0,1.44724434]
[1749891630074,0.6119637,105180.0,105170.0,1.43243783]
[1749891630581,0.6119637,105180.0,105170.0,1.44724434]
[1749891630793,0.6119637,105180.0,105170.0,1.42220947]
[1749891630989,0.6119637,105180.0,105170.0,1.43701598]
[1749891631181,0.6119637,105180.0,105170.0,1.44724505]
[1749891632079,0.6119637,105180.0,105170.0,1.42220947]
[1749891632283,0.6119637,105180.0,105170.0,1.44723723]
[1749891632481,0.73083657,105180.0,105170.0,1.44723723]
[1749891632882,0.73083657,105180.0,105170.0,1.4324477]
[1749891633084,0.73083657,105180.0,105170.0,1.44723723]
[1749891633278,0.73083657,105180.0,105170.0,1.436999]
[1749891633483,0.73083657,105180.0,105170.0,1.44723723]
[1749891633782,0.73083657,105180.0,105170.0,1.42220947]
[1749891634184,0.73083657,105180.0,105170.0,1.44723723]
[1749891634384,0.73083657,105180.0,105170.0,1.43701059]
[1749891634687,0.73083657,105180.0,105170.0,1.44724883]
[1749891635083,0.73083657,105180.0,105170.0,1.44724901]
[1749891635279,0.73083657,105180.0,105170.0,1.42220947]
[1749891635484,0.73083657,105180.0,105170.0,1.43701084]
[1749891635683,0.73083657,105180.0,105170.0,1.42220947]
[1749891635984,0.73083657,105180.0,105170.0,1.44724908]
[1749891636190,0.73083657,105180.0,105170.0,1.43701074]
[1749891636398,0.73083657,105180.0,105170.0,1.42220947]
[1749891636578,0.73083657,105180.0,105170.0,1.4472493]
[1749891636890,0.73083657,105180.0,105170.0,1.44724933]
[1749891637089,0.73083657,105180.0,105170.0,1.44724935]
[1749891637991,0.73083657,105180.0,105170.0,1.44725077]
[1749891638195,0.73083657,105180.0,105170.0,1.43244934]
[1749891638400,0.73083657,105180.0,105170.0,1.44725077]
[1749891638597,0.73083657,105180.0,105170.0,1.44725094]
[1749891638997,0.73083657,105180.0,105170.0,1.44725122]
[1749891639197,0.73083657,105180.0,105170.0,1.44725125]
[1749891639397,0.73083657,105180.0,105170.0,1.44725142]
[1749891639598,0.73083657,105180.0,105170.0,1.42220947]
[1749891639798,0.73083657,105180.0,105170.0,1.43244997]
[1749891639996,0.73083657,105180.0,105170.0,1.43700836]
[1749891640200,0.73083657,105180.0,105170.0,1.43245001]
[1749891640401,0.73083657,105180.0,105170.0,1.43700835]
[1749891640601,0.73083657,105180.0,105170.0,1.42220947]
[1749891640803,0.73083657,105180.0,105170.0,1.43700938]
[1749891641102,0.73083657,105180.0,105170.0,1.44725062]
[1749891641302,0.73083657,105180.0,105170.0,1.43700941]
[1749891641504,0.73083657,105180.0,105170.0,1.4472502]
[1749891641701,0.73083657,105180.0,105170.0,1.43700942]
[1749891642203,0.73083657,105180.0,105170.0,1.43245025]
[1749891642399,0.6119637,105180.0,105170.0,1.43700942]
[1749891642602,0.6119637,105180.0,105170.0,1.4472502]
[1749891642798,0.6119637,105180.0,105170.0,1.43245045]
[1749891642999,0.6119637,105180.0,105170.0,1.44725068]
[1749891643302,0.6119637,105180.0,105170.0,1.44725077]
[1749891643507,0.6119637,105180.0,105170.0,1.44725043]
[1749891643712,0.6119637,105180.0,105170.0,1.43245035]
[1749891643904,0.6119637,105180.0,105170.0,1.44725041]
[1749891644104,0.6119637,105180.0,105170.0,1.43700953]
[1749891644300,0.6119637,105180.0,105170.0,1.44725034]
[1749891644505,0.73083657,105180.0,105170.0,1.43245028]
[1749891644706,0.73083657,105180.0,105170.0,1.44724921]
[1749891644906,0.73083657,105180.0,105170.0,1.44724934]
[1749891645407,0.73083657,105180.0,105170.0,1.42220947]
[1749891645611,0.73083657,105180.0,105170.0,1.45749031]
[1749891646005,0.73083657,105180.0,105170.0,1.44269131]
[1749891646407,0.73083657,105180.0,105170.0,1.44724939]
[1749891646710,0.73083657,105180.0,105170.0,1.44269115]
[1749891646911,0.73083657,105180.0,105170.0,1.45749009]
[1749891647108,0.73083657,105180.0,105170.0,1.43245039]
[1749891647312,0.73083657,105180.0,105170.0,1.45749]
[1749891647513,0.73083657,105180.0,105170.0,1.45748999]
[1749891647809,0.73083657,105180.0,105170.0,1.44724975]
[1749891648110,0.73083657,105180.0,105170.0,1.44269272]
[1749891648306,0.6119637,105180.0,105170.0,1.43245039]
[1749891648507,0.6119637,105180.0,105170.0,1.45749437]
[1749891648708,0.6119637,105180.0,105170.0,1.4574946]
[1749891649015,0.6119637,105180.0,105170.0,1.44269299]
[1749891649209,0.6119637,105180.0,105170.0,1.43245039]
[1749891649412,0.6119637,105180.0,105170.0,1.45749466]
[1749891649619,0.6119637,105180.0,105170.0,1.45749454]
[1749891649916,0.6119637,105180.0,105170.0,1.44725198]
[1749891650114,0.6119637,105180.0,105170.0,1.45749259]
[1749891650316,0.6119637,105180.0,105170.0,1.44725039]
[1749891650515,0.6119637,105180.0,105170.0,1.45749265]
[1749891650714,0.6119637,105180.0,105170.0,1.45749274]
[1749891650916,0.6119637,105180.0,105170.0,1.44269269]
[1749891651116,0.6119637,105180.0,105170.0,1.44724971]
[1749891651415,0.6119637,105180.0,105170.0,1.44269216]
[1749891651719,0.6119637,105180.0,105170.0,1.45749157]
[1749891652019,0.6119637,105180.0,105170.0,1.45749095]
[1749891652211,0.6119637,105180.0,105170.0,1.44269152]
[1749891652411,0.6119637,105180.0,105170.0,1.41302963]
[1749891652712,0.6119637,105180.0,105170.0,1.39823013]
[1749891652914,0.6119637,105180.0,105170.0,1.41302963]
[1749891653413,0.6119637,105180.0,105170.0,1.39823013]
[1749891653620,0.6119637,105180.0,105170.0,1.4027885]
[1749891653820,0.6119637,105180.0,105170.0,1.39823013]
[1749891654116,0.6119637,105180.0,105170.0,1.41302963]
[1749891654419,0.73082954,105180.0,105170.0,1.39823013]
[1749891654622,0.73082954,105180.0,105170.0,1.4027885]
[1749891654814,0.73082954,105180.0,105170.0,1.41302963]
[1749891655014,0.73082954,105180.0,105170.0,1.39823013]
[1749891655214,0.73082954,105180.0,105170.0,1.41302614]
[1749891655711,0.73082954,105180.0,105170.0,1.41302615]
[1749891656615,0.73082954,105180.0,105170.0,1.40278553]
[1749891656822,0.73082954,105180.0,105170.0,1.41302748]
[1749891657012,0.73082954,105180.0,105170.0,0.46974748]
[1749891657213,0.73082954,105180.0,105170.0,0.45950553]
[1749891657421,0.73082954,105180.0,105170.0,1.40266553]
[1749891657727,0.73082954,105180.0,105170.0,1.41290762]
[1749891658219,0.73082954,105180.0,105170.0,0.30830728]
[1749891658516,0.73082954,105180.0,105170.0,1.38080776]
[1749891658724,0.73082954,105180.0,105170.0,1.36601111]
[1749891659221,0.73082954,105180.0,105170.0,1.38080787]
[1749891659819,0.73082954,105180.0,105170.0,1.38080788]
[1749891660123,0.73082954,105180.0,105170.0,0.29100423]
[1749891660322,0.6119637,105180.0,105170.0,1.38080817]
[1749891660515,0.6424637,105180.0,105170.0,1.36601137]
[1749891660716,0.6424637,105180.0,105170.0,0.412609]
[1749891660916,0.6424637,105180.0,105170.0,1.37056837]
[1749891661422,0.78910743,105180.0,105170.0,1.38081074]
[1749891661625,0.79324578,105180.0,105170.0,1.38081076]
[1749891662422,0.79324578,105180.0,105170.0,1.42527584]
[1749891662822,0.91211911,105180.0,105170.0,1.4252797]
[1749891663023,0.91211911,105180.0,105170.0,1.4104795]
[1749891663327,0.91211911,105180.0,105170.0,1.42528274]
[1749891663624,0.91211911,105180.0,105170.0,1.42528273]
[1749891663820,0.76547538,105180.0,105170.0,1.42528273]
[1749891664021,0.91211911,105180.0,105170.0,1.42528273]
[1749891665315,0.91211911,105180.0,105170.0,1.4150373]
[1749891665521,0.91211911,105180.0,105170.0,1.40023408]
[1749891665828,0.91211911,105180.0,105170.0,1.42528274]
[1749891666015,0.91211911,105180.0,105170.0,1.40023408]
[1749891666216,0.91211911,105180.0,105170.0,1.42529201]
[1749891666428,0.91211911,105180.0,105170.0,1.42529202]
[1749891666731,0.76133703,105180.0,105170.0,1.42529202]
[1749891666930,0.76133703,105180.0,105170.0,1.42529201]
[1749891667131,0.76133703,105180.0,105170.0,1.27864828]
[1749891667331,0.76133703,105180.0,105170.0,1.42529199]
[1749891667832,0.76133703,105180.0,105170.0,1.4252923]
[1749891668019,0.76133703,105180.0,105170.0,1.42529224]
[1749891668221,0.76133703,105180.0,105170.0,1.41047961]
[1749891668432,0.76133703,105180.0,105170.0,1.41047956]
[1749891668631,0.76133703,105180.0,105170.0,1.42529161]
[1749891669136,0.76133703,105180.0,105170.0,1.41504614]
[1749891669434,0.76133703,105180.0,105170.0,1.4252916]
[1749891669625,0.76133703,105180.0,105170.0,1.40023408]
[1749891669825,0.76133703,105180.0,105170.0,1.41047954]
[1749891670026,0.76133703,105180.0,105170.0,1.41504614]
[1749891670226,0.76133703,105180.0,105170.0,1.42528697]
[1749891670621,0.76133703,105180.0,105170.0,1.40023408]
[1749891670827,0.76133703,105180.0,105170.0,1.41504151]
[1749891671032,0.76133703,105180.0,105170.0,1.42528543]
[1749891671223,0.76133703,105180.0,105170.0,1.4150406]
[1749891671723,0.76133703,105180.0,105170.0,1.42528543]
[1749891672027,0.76133703,105180.0,105170.0,1.41047701]
[1749891672326,0.76133703,105180.0,105170.0,1.42527309]
[1749891672531,0.6424637,105180.0,105170.0,1.41047701]
[1749891672721,0.6424637,105180.0,105170.0,1.42527309]
[1749891673125,0.6424637,105180.0,105170.0,1.42527325]
[1749891673727,0.6424637,105180.0,105170.0,1.42527326]
[1749891674221,0.6424637,105180.0,105170.0,1.41503017]
[1749891674424,0.6424637,105180.0,105170.0,1.41047717]
[1749891674631,0.6424637,105180.0,105170.0,1.42527325]
[1749891675128,0.6424637,105180.0,105170.0,1.41503339]
[1749891675328,0.6424637,105180.0,105170.0,1.42527711]
[1749891675536,0.6424637,105180.0,105170.0,1.41503339]
[1749891675728,0.6424637,105180.0,105170.0,1.42527711]
[1749891676130,0.6424637,105180.0,105170.0,1.4104778]
[1749891676335,0.6424637,105180.0,105170.0,1.42527711]
[1749891677029,0.76133703,105180.0,105170.0,1.41047843]
[1749891677236,0.76133703,105180.0,105170.0,1.42527774]
[1749891677723,0.76133703,105180.0,105170.0,1.41503339]
[1749891677926,0.76133703,105180.0,105170.0,1.40023408]
[1749891678124,0.76133703,105180.0,105170.0,1.42527774]
[1749891678933,0.76133703,105180.0,105170.0,1.4252778]
[1749891679128,0.76133703,105180.0,105170.0,1.40023408]
[1749891679328,0.6424637,105180.0,105170.0,1.42527789]
[1749891679532,0.6424637,105180.0,105170.0,1.41503348]
[1749891679829,0.6424637,105180.0,105170.0,1.41047849]
[1749891680029,0.6424637,105180.0,105170.0,1.40023408]
[1749891680236,0.6424637,105180.0,105170.0,1.42528137]
[1749891680435,0.6424637,105180.0,105170.0,1.41503695]
[1749891680636,0.6424637,105180.0,105170.0,1.42528136]
[1749891680832,0.6424637,105180.0,105170.0,1.41047859]
[1749891681037,0.6424637,105180.0,105170.0,1.41503694]
[1749891681233,0.6424637,105180.0,105170.0,1.41047834]
[1749891681435,0.6424637,105180.0,105170.0,1.40023408]
[1749891681627,0.6424637,105180.0,105170.0,1.42528074]
[1749891681832,0.6119637,105180.0,105170.0,1.41503654]
[1749891682031,0.6119637,105180.0,105170.0,1.42528069]
[1749891682238,0.6119637,105180.0,105170.0,1.4150366]
[1749891682539,0.6119637,105180.0,105170.0,1.42528093]
[1749891682730,0.73083703,105180.0,105170.0,1.42528141]
[1749891682927,0.73083703,105180.0,105170.0,1.41503689]
[1749891683131,0.73083703,105180.0,105170.0,1.41047861]
[1749891683328,0.73083703,105180.0,105170.0,1.42528158]
[1749891683732,0.73083703,105180.0,105170.0,1.41047855]
[1749891683934,0.73083703,105180.0,105170.0,1.42528128]
[1749891684239,0.73083703,105180.0,105170.0,1.41503675]
[1749891684439,0.73083703,105180.0,105170.0,1.41504371]
[1749891684634,0.73083703,105180.0,105170.0,1.42528814]
[1749891684828,0.73083703,105180.0,105170.0,1.40023408]
[1749891685032,0.73083703,105180.0,105170.0,1.42528814]
[1749891685833,0.73083703,105180.0,105170.0,1.4150437]
[1749891686139,0.73083703,105180.0,105170.0,1.42528813]
[1749891686339,0.73083703,105180.0,105170.0,1.42528814]
[1749891686636,0.73083703,105180.0,105170.0,1.40023408]
[1749891686840,0.73083703,105180.0,105170.0,1.42528995]
[1749891687034,0.73083703,105180.0,105170.0,1.42528893]